bitfinex-derivatives/quotes_BTCF0:USTF0_20220103
["timestamp","ask_amount","ask_price","bid_price","bid_amount"]
[1641236263444,0.18,46447.0,46445.0,0.14033567]
[1641236263842,0.12158116,46448.0,46445.0,0.14033567]
[1641236264040,0.009794,46449.0,46445.0,0.14033567]
[1641236264239,0.188,46447.0,46445.0,0.14033567]
[1641236264440,0.002,46446.0,46445.0,0.14033567]
[1641236264641,0.001,46446.0,46445.0,0.14033567]
[1641236264847,0.002,46446.0,46445.0,0.14033567]
[1641236265042,0.001,46446.0,46445.0,0.14033567]
[1641236265441,0.002,46446.0,46445.0,0.14033567]
[1641236266242,0.189,46446.0,46445.0,0.14033567]
[1641236267245,0.188,46446.0,46445.0,0.14033567]
[1641236267645,0.001,46446.0,46445.0,0.14033567]
[1641236268251,0.191,46446.0,46445.0,0.14033567]
[1641236269648,0.001,46446.0,46445.0,0.14033567]
[1641236270256,0.19,46446.0,46445.0,0.14033567]
[1641236271555,0.001,46446.0,46445.0,0.14033567]
[1641236272253,0.191,46446.0,46445.0,0.14033567]
[1641236273653,0.001,46446.0,46445.0,0.14033567]
[1641236274352,0.191,46446.0,46445.0,0.14033567]
[1641236275655,0.001,46446.0,46445.0,0.14033567]
[1641236276254,0.191,46446.0,46445.0,0.14033567]
[1641236277658,1.09220161,46449.0,46445.0,0.14033567]
[1641236277859,1.08240761,46449.0,46448.0,0.18]
[1641236278258,1.27440761,46449.0,46446.0,0.06]
[1641236278458,1.27440761,46449.0,46448.0,0.02152723]
[1641236279275,1.27440761,46449.0,46448.0,0.20152723]
[1641236279472,1.27440761,46449.0,46448.0,0.02152723]
[1641236279674,1.08240761,46449.0,46448.0,0.02152723]
[1641236280075,0.14033567,46460.0,46448.0,0.02152723]
[1641236280274,0.009794,46459.0,46452.0,0.18]
[1641236280474,0.001,46453.0,46452.0,0.18]
[1641236280677,0.009794,46459.0,46448.0,0.02152723]
[1641236280875,0.009794,46459.0,46452.0,0.18]
[1641236281075,0.001,46454.0,46452.0,0.18]
[1641236281277,0.001,46453.0,46452.0,0.18]
[1641236281976,0.001,46453.0,46450.0,0.14033567]
[1641236282176,0.009794,46459.0,46450.0,0.14033567]
[1641236282377,0.187,46453.0,46450.0,0.14033567]
[1641236283376,0.001,46451.0,46448.0,0.60612908]
[1641236283776,0.18,46454.0,46448.0,0.60612908]
[1641236283976,0.18,46454.0,46447.0,0.60612908]
[1641236284178,0.12156952,46453.0,46447.0,0.60612908]
[1641236285278,0.12156952,46453.0,46445.0,0.16186426]
[1641236286179,0.12156952,46454.0,46445.0,0.16186426]
[1641236286382,0.192,46453.0,46445.0,0.16186426]
[1641236286681,0.12156952,46452.0,46445.0,0.16186426]
[1641236287681,1.64502716,46466.0,46451.0,0.18]
[1641236287884,1.08240761,46463.0,46457.0,0.0215229]
[1641236288086,1.08240761,46463.0,46456.0,0.02152362]
[1641236288482,0.32633567,46460.0,46457.0,0.18]
[1641236289284,0.32633567,46460.0,46456.0,0.20152362]
[1641236290283,0.14033567,46460.0,46456.0,0.20152362]
[1641236290485,0.32133567,46460.0,46456.0,0.20152362]
[1641236291187,0.28067134,46465.0,46459.0,0.20152101]
[1641236291387,0.28067134,46465.0,46459.0,0.02152101]
[1641236292386,0.28067134,46465.0,46459.0,0.20952101]
[1641236292985,1.40467134,46465.0,46459.0,0.20952101]
[1641236293185,1.40467134,46465.0,46459.0,0.188]
[1641236293786,1.40467134,46465.0,46457.0,0.14033567]
[1641236294085,1.47335134,46465.0,46457.0,0.14033567]
[1641236294486,1.65435134,46465.0,46457.0,0.31733567]
[1641236294888,1.304,46461.0,46457.0,0.31733567]
[1641236295088,0.181,46458.0,46457.0,0.177]
[1641236295286,1.305,46458.0,46457.0,0.177]
[1641236295686,1.304,46458.0,46453.0,0.60612908]
[1641236295990,0.002,46454.0,46451.0,0.14033567]
[1641236296187,0.001,46452.0,46451.0,0.14033567]
[1641236298389,0.185,46452.0,46451.0,0.14033567]
[1641236299689,0.18,46459.0,46451.0,0.14033567]
[1641236300290,1.133794,46460.0,46451.0,0.14033567]
[1641236300489,0.12155805,46458.0,46451.0,0.14033567]
[1641236300687,0.001,46453.0,46451.0,0.14033567]
[1641236300889,0.001,46452.0,46451.0,0.14033567]
[1641236301389,0.183,46459.0,46451.0,0.14033567]
[1641236301789,0.18,46459.0,46451.0,0.14033567]
[1641236302189,0.12155795,46458.0,46451.0,0.14033567]
[1641236303792,0.001,46453.0,46451.0,0.14033567]
[1641236303992,0.001,46452.0,46451.0,0.14033567]
[1641236306296,0.001,46452.0,46446.0,0.60612908]
[1641236306297,0.090704,46452.0,46446.0,0.60612908]
[1641236306496,0.282704,46452.0,46446.0,0.60612908]
[1641236306697,0.18,46451.0,46446.0,0.60612908]
[1641236307497,0.18,46451.0,46445.0,0.14033567]
[1641236308300,0.12156929,46450.0,46445.0,0.14033567]
[1641236310599,0.31856929,46450.0,46445.0,0.14033567]
[1641236311102,0.12156929,46449.0,46445.0,0.14033567]
[1641236312202,0.12156929,46451.0,46445.0,0.14033567]
[1641236312402,0.174,46449.0,46445.0,0.14033567]
[1641236313205,0.12156929,46448.0,46445.0,0.14033567]
[1641236313502,0.174,46449.0,46445.0,0.14033567]
[1641236313703,0.009794,46452.0,46445.0,0.14033567]
[1641236314303,0.12156956,46451.0,46445.0,0.14033567]
[1641236316505,0.29856956,46451.0,46445.0,0.14033567]
[1641236317106,0.12156956,46450.0,46445.0,0.14033567]
[1641236317507,0.12156956,46450.0,46443.0,0.60612908]
[1641236318307,0.12156956,46451.0,46443.0,0.60612908]
[1641236318607,0.12156956,46449.0,46443.0,0.67689908]
[1641236318809,0.12156956,46449.0,46448.0,0.32033567]
[1641236319008,0.165,46450.0,46448.0,0.32133567]
[1641236319208,0.165,46450.0,46448.0,0.32033567]
[1641236319409,0.165,46450.0,46448.0,0.14033567]
[1641236319810,1.08240761,46458.0,46448.0,0.34186099]
[1641236320010,1.08240761,46458.0,46451.0,0.18]
[1641236320211,0.12155299,46457.0,46451.0,0.18]
[1641236320625,0.12155299,46457.0,46449.0,0.18]
[1641236320823,0.12155299,46457.0,46454.0,0.14033567]
[1641236322128,0.32033567,46461.0,46454.0,0.14033567]
[1641236322129,0.12155299,46460.0,46454.0,0.14033567]
[1641236322529,0.12155299,46456.0,46454.0,0.32333567]
[1641236323729,0.12155299,46456.0,46454.0,0.14033567]
[1641236324533,0.055,46456.0,46454.0,0.33033567]
[1641236324733,0.235,46456.0,46454.0,0.33033567]
[1641236324935,0.12155299,46455.0,46454.0,0.33033567]
[1641236325335,0.12255299,46455.0,46454.0,0.33033567]
[1641236325536,0.12155299,46455.0,46454.0,0.33033567]
[1641236325838,0.12255299,46455.0,46454.0,0.14033567]
[1641236326434,0.31355299,46455.0,46454.0,0.14033567]
[1641236327435,0.31355299,46455.0,46454.0,0.07955097]
[1641236327836,0.12255299,46455.0,46454.0,0.07955097]
[1641236328036,0.12255299,46455.0,46445.0,0.14033567]
[1641236328037,1.24555299,46455.0,46445.0,0.14033567]
[1641236328238,0.18,46449.0,46445.0,0.14033567]
[1641236329238,0.189794,46453.0,46445.0,0.14033567]
[1641236329439,0.12157117,46448.0,46445.0,0.14033567]
[1641236329744,0.12157117,46452.0,46445.0,0.14033567]
[1641236329941,0.12157117,46447.0,46445.0,0.14033567]
[1641236330340,0.12157117,46452.0,46445.0,0.14033567]
[1641236330541,0.142,46447.0,46445.0,0.14033567]
[1641236331744,0.009794,46453.0,46445.0,0.14033567]
[1641236331945,0.001,46448.0,46445.0,0.14033567]
[1641236332143,0.001,46446.0,46445.0,0.14033567]
[1641236332544,0.127,46448.0,46445.0,0.14033567]
[1641236332946,0.12157087,46447.0,46445.0,0.14033567]
[1641236333452,0.127,46448.0,46445.0,0.14033567]
[1641236333946,0.009794,46453.0,46445.0,0.14033567]
[1641236334549,0.12156565,46452.0,46445.0,0.14033567]
[1641236335350,0.12156565,46452.0,46445.0,0.74822352]
[1641236336257,0.12156565,46452.0,46445.0,0.14033567]
[1641236336458,0.27456565,46452.0,46445.0,0.32733567]
[1641236336951,0.12156565,46451.0,46445.0,0.32733567]
[1641236338350,0.153,46452.0,46445.0,0.93522352]
[1641236338554,0.123,46451.0,46445.0,1.12322352]
[1641236338753,0.24456313,46451.0,46445.0,1.12322352]
[1641236339253,0.123,46451.0,46445.0,1.12322352]
[1641236339453,0.123,46451.0,46445.0,1.32475217]
[1641236339660,0.123,46451.0,46445.0,0.71686432]
[1641236339860,0.009794,46453.0,46445.0,0.34186432]
[1641236340056,0.14033567,46455.0,46445.0,0.34186432]
[1641236340463,0.14033567,46455.0,46445.0,0.53186432]
[1641236340864,0.12155792,46454.0,46445.0,0.53186432]
[1641236341358,0.12155792,46454.0,46446.0,0.60788785]
[1641236341557,0.19224792,46454.0,46446.0,0.60788785]
[1641236341957,0.12155792,46453.0,46446.0,0.60788785]
[1641236342565,0.12155792,46453.0,46446.0,0.194]
[1641236343682,0.12155792,46453.0,46445.0,0.16186432]
[1641236343861,0.001,46448.0,46445.0,0.16186432]
[1641236344060,0.001,46446.0,46445.0,0.16186432]
[1641236344258,0.001,46446.0,46445.0,0.14033567]
[1641236344459,0.001,46446.0,46445.0,0.32233567]
[1641236344860,0.001,46446.0,46445.0,0.182]
[1641236345663,0.011794,46446.0,46445.0,0.182]
[1641236345863,0.010794,46446.0,46441.0,0.60788785]
[1641236346063,0.001,46442.0,46441.0,0.60788785]
[1641236346264,0.07909,46442.0,46441.0,0.60788785]
[1641236346882,0.07809,46442.0,46441.0,0.60788785]
[1641236347083,0.07809,46442.0,46440.0,0.60788785]
[1641236347285,0.001,46441.0,46440.0,0.60788785]
[1641236347980,0.001,46441.0,46436.0,0.60788785]
[1641236348182,0.001,46437.0,46436.0,0.60788785]
[1641236348580,0.001,46437.0,46436.0,0.78588785]
[1641236348986,0.001,46437.0,46436.0,0.178]
[1641236349982,0.001,46437.0,46435.0,0.74822352]
[1641236350182,0.001,46436.0,46435.0,0.74822352]
[1641236350683,0.001,46436.0,46435.0,0.93122352]
[1641236351288,0.001,46436.0,46435.0,0.95275482]
[1641236351483,0.001,46436.0,46435.0,0.96491252]
[1641236351884,0.001,46436.0,46435.0,0.97470652]
[1641236352084,0.001,46436.0,46435.0,1.29785352]
[1641236352486,0.001,46436.0,46435.0,1.30985352]
[1641236352796,0.001,46436.0,46435.0,0.37881867]
[1641236352986,0.001,46436.0,46435.0,0.37981867]
[1641236353487,0.001,46436.0,46435.0,0.37002467]
[1641236353687,0.001,46436.0,46435.0,0.36902467]
[1641236353896,0.001,46436.0,46435.0,0.17402467]
[1641236354589,0.001,46436.0,46435.0,0.36002467]
[1641236354790,0.001,46436.0,46435.0,0.54002467]
[1641236355190,0.001,46436.0,46435.0,0.86596767]
[1641236355790,0.001,46436.0,46435.0,0.67996767]
[1641236355992,0.001,46436.0,46435.0,0.49996767]
[1641236356192,0.001,46436.0,46435.0,0.67896767]
[1641236356495,0.001,46436.0,46435.0,0.86696767]
[1641236356691,0.001,46436.0,46435.0,0.86596767]
[1641236356892,0.001,46436.0,46435.0,0.86696767]
[1641236357092,0.001,46436.0,46435.0,0.86596767]
[1641236357296,0.001,46436.0,46435.0,0.68696767]
[1641236357494,0.001,46436.0,46435.0,0.68596767]
[1641236357693,0.001,46436.0,46435.0,0.49896767]
[1641236358493,0.001,46436.0,46435.0,0.68796767]
[1641236358893,0.001,46436.0,46435.0,0.86896767]
[1641236359594,0.001,46436.0,46435.0,0.86796767]
[1641236360497,0.001,46436.0,46435.0,0.86896767]
[1641236361600,0.001,46436.0,46435.0,0.86996767]
[1641236361799,0.001,46436.0,46435.0,0.67996767]
[1641236361998,0.001,46436.0,46435.0,0.17502467]
[1641236362497,0.001,46436.0,46435.0,0.36302467]
[1641236362901,0.001,46436.0,46435.0,0.36202467]
[1641236363100,0.001,46436.0,46435.0,0.36302467]
[1641236363898,0.001,46436.0,46435.0,0.17502467]
[1641236364100,0.001,46436.0,46435.0,0.35502467]
[1641236364299,0.001,46436.0,46435.0,0.17502467]
[1641236364500,0.001,46436.0,46435.0,0.54402467]
[1641236365103,1.9621,46454.0,46437.0,0.28976422]
[1641236365301,1.9621,46454.0,46447.0,0.18]
[1641236365501,0.12156053,46453.0,46447.0,0.25152]
[1641236365902,0.12156053,46457.0,46447.0,0.25152]
[1641236366102,0.12156053,46457.0,46455.0,0.02152417]
[1641236366302,0.001,46456.0,46455.0,0.02152417]
[1641236366801,0.12256053,46456.0,46455.0,0.02152417]
[1641236367002,0.009794,46464.0,46455.0,0.02152417]
[1641236367202,0.009794,46464.0,46455.0,0.16185984]
[1641236367402,0.12154249,46461.0,46455.0,0.16185984]
[1641236368602,0.12154249,46461.0,46455.0,0.33485984]
[1641236368803,0.12154249,46461.0,46458.0,0.02152277]
[1641236369206,0.009794,46464.0,46458.0,0.02152277]
[1641236369605,0.009794,46464.0,46458.0,0.08256277]
[1641236369806,0.12153624,46461.0,46458.0,0.08256277]
[1641236370210,0.12153624,46461.0,46460.0,0.0215214]
[1641236370408,0.12153624,46461.0,46460.0,0.2015214]
[1641236370807,0.12153624,46467.0,46460.0,0.2015214]
[1641236371309,0.12153624,46467.0,46466.0,0.14033567]
[1641236371509,0.12253624,46467.0,46466.0,0.14033567]
[1641236372109,0.001,46467.0,46466.0,0.14033567]
[1641236372509,0.001,46467.0,46466.0,0.32233567]
[1641236373517,0.001,46467.0,46466.0,0.34385476]
[1641236373814,0.001,46467.0,46466.0,0.16185476]
[1641236374012,1.20698795,46468.0,46466.0,0.16185476]
[1641236374512,1.20698795,46468.0,46466.0,0.35585476]
[1641236374912,0.001,46467.0,46466.0,0.35585476]
[1641236375115,0.001,46467.0,46466.0,0.35685476]
[1641236375312,0.001,46467.0,46466.0,0.33433567]
[1641236375515,0.84624055,46467.0,46466.0,0.33433567]
[1641236375916,0.84624055,46467.0,46466.0,0.14033567]
[1641236376512,0.001,46467.0,46466.0,0.33633567]
[1641236376915,0.18,46473.0,46466.0,0.33633567]
[1641236377113,0.001,46468.0,46466.0,0.33633567]
[1641236377312,0.12152112,46472.0,46466.0,0.33633567]
[1641236377512,0.001,46467.0,46466.0,0.33633567]
[1641236377911,0.001,46467.0,46466.0,0.14033567]
[1641236378313,1.20731308,46468.0,46466.0,0.14033567]
[1641236378513,1.20731308,46468.0,46467.0,0.02151627]
[1641236378914,1.20731308,46468.0,46467.0,0.02251627]
[1641236379717,0.84645881,46468.0,46467.0,0.02151627]
[1641236380215,0.18,46468.0,46466.0,0.14033567]
[1641236380417,1.20731308,46470.0,46466.0,0.14033567]
[1641236380619,1.20731308,46469.0,46467.0,0.191]
[1641236381916,1.20731308,46469.0,46466.0,0.14033567]
[1641236382119,1.20731308,46468.0,46466.0,0.14033567]
[1641236382616,1.20731308,46468.0,46467.0,0.02151722]
[1641236384120,0.009794,46474.0,46467.0,0.02151722]
[1641236384519,0.009794,46474.0,46467.0,0.20951722]
[1641236385221,0.189794,46474.0,46467.0,0.20951722]
[1641236386121,0.009794,46474.0,46467.0,0.02151722]
[1641236386321,0.189794,46474.0,46467.0,0.02151722]
[1641236386523,0.189794,46474.0,46467.0,0.20951722]
[1641236386926,0.009794,46474.0,46467.0,0.20951722]
[1641236387123,1.21032369,46468.0,46467.0,0.20951722]
[1641236387925,1.21032369,46468.0,46467.0,0.02151722]
[1641236388535,1.21032369,46468.0,46467.0,0.21251722]
[1641236389736,1.21032369,46468.0,46467.0,0.02151722]
[1641236390238,0.18,46473.0,46466.0,0.14033567]
[1641236390436,0.009794,46474.0,46466.0,0.14033567]
[1641236390437,0.181,46468.0,46466.0,0.14033567]
[1641236390639,0.189794,46468.0,46467.0,0.185]
[1641236390939,0.190794,46468.0,46467.0,0.185]
[1641236391137,0.190794,46468.0,46467.0,0.1648]
[1641236391338,0.190794,46468.0,46466.0,0.14033567]
[1641236391538,0.001,46467.0,46466.0,0.14033567]
[1641236392338,0.189794,46468.0,46466.0,0.14033567]
[1641236392541,0.188,46467.0,46466.0,0.14033567]
[1641236393040,0.188,46467.0,46466.0,0.1618544]
[1641236393840,0.009794,46478.0,46466.0,0.1618544]
[1641236394143,0.189794,46478.0,46466.0,0.1618544]
[1641236394439,0.12151749,46477.0,46466.0,0.1618544]
[1641236394640,1.2113417,46468.0,46466.0,0.1618544]
[1641236396441,1.4043417,46468.0,46466.0,0.1618544]
[1641236397843,1.2113417,46468.0,46466.0,0.1618544]
[1641236398042,1.2113417,46468.0,46467.0,0.009794]
[1641236398242,1.2113417,46468.0,46467.0,0.082884]
[1641236398442,1.2113417,46468.0,46467.0,0.256884]
[1641236398642,1.3983417,46468.0,46467.0,0.256884]
[1641236399948,1.2113417,46468.0,46467.0,0.082884]
[1641236400147,2.05968695,46468.0,46467.0,0.082884]
[1641236400350,0.84834525,46468.0,46467.0,0.09460733]
[1641236400552,1.03234525,46468.0,46467.0,0.19751733]
[1641236401549,0.184,46468.0,46467.0,0.19751733]
[1641236401747,0.84834525,46469.0,46467.0,0.02151733]
[1641236402448,0.84834525,46468.0,46467.0,0.19551733]
[1641236403749,0.93542525,46468.0,46467.0,0.174]
[1641236403954,1.11542525,46468.0,46466.0,0.14033567]
[1641236404149,0.001,46467.0,46466.0,0.14033567]
[1641236404349,0.010794,46467.0,46466.0,0.14033567]
[1641236405149,0.190794,46467.0,46466.0,0.14033567]
[1641236405552,0.190794,46467.0,46461.0,0.14033567]
[1641236405749,0.181,46462.0,46461.0,0.14033567]
[1641236406550,0.186,46462.0,46461.0,0.14033567]
[1641236407352,1.39608416,46462.0,46461.0,0.14033567]
[1641236407951,1.21108416,46462.0,46461.0,0.14033567]
[1641236408552,1.40008416,46462.0,46461.0,0.14033567]
[1641236408952,0.19,46462.0,46461.0,0.14033567]
[1641236409753,0.001,46462.0,46461.0,0.14033567]
[1641236410158,0.009794,46467.0,46461.0,0.16185656]
[1641236410354,0.84743052,46462.0,46461.0,0.21260567]
[1641236410659,1.03343052,46462.0,46461.0,0.21260567]
[1641236411654,1.03343052,46462.0,46461.0,0.23412414]
[1641236411854,1.21061503,46464.0,46461.0,0.23512414]
[1641236412053,0.84743052,46466.0,46462.0,0.18]
[1641236412455,1.02443052,46466.0,46462.0,0.18]
[1641236413055,0.177,46466.0,46462.0,0.18]
[1641236413855,0.84743052,46467.0,46463.0,0.14033567]
[1641236414256,0.84743052,46467.0,46466.0,0.18]
[1641236414456,0.97243052,46467.0,46466.0,0.18]
[1641236414956,0.125,46467.0,46466.0,0.18]
[1641236415157,0.84743052,46469.0,46466.0,0.20151581]
[1641236415356,0.9742638,46484.0,46468.0,0.001]
[1641236415556,0.9742638,46484.0,46466.0,0.35440147]
[1641236415758,0.9742638,46484.0,46478.0,0.14033567]
[1641236415959,0.9742638,46484.0,46478.0,0.23567567]
[1641236416157,2.0555934,46484.0,46478.0,0.23567567]
[1641236416558,2.1715934,46484.0,46478.0,0.42267567]
[1641236417760,1.0902638,46484.0,46483.0,0.14033567]
[1641236417961,0.20151343,46495.0,46483.0,0.14033567]
[1641236418561,0.177,46490.0,46483.0,0.32433567]
[1641236419760,0.18,46485.0,46483.0,0.32433567]
[1641236419961,0.18,46485.0,46483.0,0.14033567]
[1641236420662,0.366,46485.0,46483.0,0.32933567]
[1641236421860,0.18,46485.0,46483.0,0.14033567]
[1641236422061,0.001,46484.0,46483.0,0.14033567]
[1641236422461,0.001,46484.0,46483.0,0.31133567]
[1641236422862,0.176,46485.0,46483.0,0.31133567]
[1641236423163,0.181,46484.0,46483.0,0.31133567]
[1641236423364,0.30249034,46484.0,46483.0,0.31133567]
[1641236423561,0.30149034,46484.0,46483.0,0.31133567]
[1641236423765,0.30249034,46484.0,46483.0,0.14033567]
[1641236424563,0.48049034,46484.0,46483.0,0.31333567]
[1641236425764,0.30049034,46484.0,46483.0,0.31333567]
[1641236425966,0.12149034,46484.0,46483.0,0.15012967]
[1641236426463,0.187,46484.0,46483.0,0.33112967]
[1641236427064,1.03555838,46484.0,46483.0,0.33112967]
[1641236427965,0.84855838,46484.0,46483.0,0.15012967]
[1641236428364,0.84855838,46484.0,46483.0,0.14033567]
[1641236428566,0.84855838,46484.0,46483.0,0.32233567]
[1641236428567,1.03555838,46484.0,46483.0,0.32233567]
[1641236430465,0.84855838,46484.0,46483.0,0.14033567]
[1641236430664,0.84855838,46484.0,46483.0,0.32533567]
[1641236430865,0.27072,46487.0,46483.0,0.32533567]
[1641236431067,0.18,46484.0,46483.0,0.32533567]
[1641236431965,0.18,46484.0,46483.0,0.14033567]
[1641236432365,0.12149239,46484.0,46483.0,0.14033567]
[1641236432568,0.47149239,46484.0,46483.0,0.32633567]
[1641236432768,0.35,46484.0,46483.0,0.32633567]
[1641236432967,0.17,46484.0,46483.0,0.32633567]
[1641236433167,0.35,46484.0,46483.0,0.32633567]
[1641236433770,0.17,46484.0,46483.0,0.14033567]
[1641236433967,0.18,46484.0,46483.0,0.14033567]
[1641236434468,0.18,46484.0,46483.0,0.32633567]
[1641236434670,0.35,46484.0,46483.0,0.32633567]
[1641236435972,0.18,46484.0,46483.0,0.14033567]
[1641236436373,0.12,46484.0,46483.0,0.14033567]
[1641236436571,0.342,46484.0,46483.0,0.32733567]
[1641236437873,0.18,46484.0,46483.0,0.14033567]
[1641236438674,0.351,46484.0,46483.0,0.32633567]
[1641236440076,0.18,46484.0,46483.0,0.14033567]
[1641236440677,0.365,46484.0,46483.0,0.32733567]
[1641236441278,0.185,46484.0,46483.0,0.32733567]
[1641236441878,0.0722,46488.0,46483.0,0.14033567]
[1641236442078,0.18,46484.0,46483.0,0.14033567]
[1641236442678,0.183,46484.0,46483.0,0.32733567]
[1641236443981,0.02,46490.0,46483.0,0.14033567]
[1641236444380,0.18,46485.0,46483.0,0.14033567]
[1641236444580,0.27366,46485.0,46483.0,0.32233567]
[1641236445182,0.001,46484.0,46483.0,0.32233567]
[1641236445384,0.12248844,46484.0,46479.0,0.6068044]
[1641236445590,0.18,46480.0,46478.0,0.6068044]
[1641236446183,0.001,46479.0,46478.0,0.6068044]
[1641236446586,0.12250417,46479.0,46478.0,0.6068044]
[1641236446983,0.12250417,46479.0,46473.0,0.74714007]
[1641236447283,0.181,46474.0,46473.0,0.74714007]
[1641236447583,0.25426,46474.0,46473.0,0.74714007]
[1641236448082,0.25426,46474.0,46473.0,0.14033567]
[1641236448585,0.43826,46474.0,46473.0,0.14033567]
[1641236448984,0.25826,46474.0,46473.0,0.14033567]
[1641236449885,0.07426,46474.0,46473.0,0.14033567]
[1641236450085,0.001,46474.0,46473.0,0.14033567]
[1641236450585,0.186,46474.0,46473.0,0.14033567]
[1641236451995,1.21434305,46474.0,46473.0,0.14033567]
[1641236452596,1.39834305,46474.0,46473.0,0.14033567]
[1641236452796,0.185,46474.0,46473.0,0.14033567]
[1641236453998,0.001,46474.0,46473.0,0.14033567]
[1641236454697,0.188,46474.0,46473.0,0.14033567]
[1641236455402,0.187,46474.0,46473.0,0.14033567]
[1641236455598,0.188,46474.0,46473.0,0.14033567]
[1641236455799,0.187,46474.0,46473.0,0.14033567]
[1641236456003,0.001,46474.0,46473.0,0.14033567]
[1641236456601,0.186,46474.0,46473.0,0.14033567]
[1641236456803,0.187,46474.0,46473.0,0.14033567]
[1641236457002,0.186,46474.0,46473.0,0.14033567]
[1641236457201,0.187,46474.0,46473.0,0.14033567]
[1641236457902,0.001,46474.0,46473.0,0.14033567]
[1641236458302,0.15012967,46482.0,46473.0,0.14033567]
[1641236458502,1.21339057,46474.0,46473.0,0.20499567]
[1641236458702,1.40339057,46474.0,46473.0,0.20499567]
[1641236459102,1.40339057,46474.0,46473.0,0.20599567]
[1641236459704,0.19,46474.0,46473.0,0.20499567]
[1641236459905,1.21339057,46475.0,46473.0,0.20499567]
[1641236460704,1.39939057,46475.0,46473.0,0.20499567]
[1641236460906,2.24894719,46475.0,46473.0,0.20499567]
[1641236461104,1.03555662,46475.0,46473.0,0.20499567]
[1641236461706,0.186,46475.0,46473.0,0.20499567]
[1641236461907,0.84955662,46476.0,46473.0,0.20499567]
[1641236462706,1.04155662,46476.0,46473.0,0.20499567]
[1641236463909,0.84955662,46476.0,46473.0,0.20499567]
[1641236464708,1.04255662,46476.0,46473.0,0.20499567]
[1641236465408,0.193,46476.0,46473.0,0.20499567]
[1641236465608,0.193,46476.0,46475.0,0.6068044]
[1641236466008,0.15012967,46482.0,46475.0,0.6068044]
[1641236466409,0.12149363,46481.0,46475.0,0.6068044]
[1641236466608,0.18,46480.0,46475.0,0.93028829]
[1641236467308,0.19,46482.0,46476.0,0.009794]
[1641236467510,0.19,46482.0,46476.0,0.094004]
[1641236467708,0.19,46482.0,46476.0,0.415161]
[1641236467909,0.009794,46488.0,46476.0,0.415161]
[1641236468311,0.12148086,46487.0,46485.0,0.14033567]
[1641236468611,0.001,46486.0,46485.0,0.14033567]
[1641236469614,0.181,46486.0,46485.0,0.14033567]
[1641236470013,0.001,46486.0,46485.0,0.14033567]
[1641236470211,0.009794,46488.0,46485.0,0.14033567]
[1641236470414,0.12148618,46486.0,46485.0,0.14033567]
[1641236470711,0.12148618,46487.0,46485.0,0.14033567]
[1641236471312,0.188,46488.0,46485.0,0.14033567]
[1641236471911,0.18,46491.0,46485.0,0.14033567]
[1641236472313,1.31876169,46497.0,46485.0,0.14033567]
[1641236472511,1.30896769,46497.0,46485.0,0.14033567]
[1641236472711,0.209,46490.0,46486.0,0.009794]
[1641236473512,0.209,46490.0,46487.0,0.320783]
[1641236474112,0.209,46490.0,46489.0,0.02150827]
[1641236474314,0.0001,46490.0,46489.0,0.02150827]
[1641236474517,0.9742638,46497.0,46489.0,0.02150827]
[1641236474714,0.185,46490.0,46489.0,0.34614127]
[1641236474916,0.9742638,46497.0,46489.0,0.34614127]
[1641236475113,0.9742638,46497.0,46489.0,0.34714127]
[1641236475714,0.9742638,46497.0,46489.0,0.34614127]
[1641236476113,1.0001,46500.0,46489.0,0.34614127]
[1641236476314,1.0001,46500.0,46497.0,0.14033567]
[1641236476513,0.001,46498.0,46497.0,0.14033567]
[1641236477313,0.001,46498.0,46497.0,0.07960524]
[1641236478614,0.001,46498.0,46497.0,0.27560524]
[1641236478817,1.0001,46500.0,46497.0,0.27560524]
[1641236479815,0.001,46498.0,46497.0,0.27560524]
[1641236480015,0.001,46498.0,46497.0,0.07960524]
[1641236480319,0.12245412,46498.0,46497.0,0.07960524]
[1641236480517,0.12145412,46498.0,46497.0,0.07960524]
[1641236480816,0.12145412,46498.0,46497.0,0.27560524]
[1641236481116,0.12145412,46499.0,46497.0,0.27560524]
[1641236481717,0.001,46498.0,46497.0,0.27560524]
[1641236481919,0.001,46498.0,46497.0,0.07960524]
[1641236482617,0.001,46498.0,46497.0,0.27560524]
[1641236483117,1.0001,46500.0,46497.0,0.27560524]
[1641236483519,1.0001,46500.0,46499.0,0.02150333]
[1641236484818,1.0001,46500.0,46499.0,0.21650333]
[1641236486020,1.0001,46500.0,46499.0,0.02150333]
[1641236486820,1.0001,46500.0,46499.0,0.21850333]
[1641236487623,1.0011,46500.0,46499.0,0.21850333]
[1641236488028,1.0011,46500.0,46499.0,0.02150333]
[1641236488226,1.1811,46500.0,46497.0,0.07960524]
[1641236488424,0.001,46498.0,46493.0,0.02150624]
[1641236488626,0.12,46499.0,46488.0,0.14033567]
[1641236488823,1.084624,46500.0,46497.0,0.197]
[1641236489025,0.181,46498.0,46488.0,0.14033567]
[1641236489225,0.001,46493.0,46488.0,0.14033567]
[1641236489425,0.18,46494.0,46488.0,0.14033567]
[1641236489626,0.009794,46496.0,46488.0,0.14033567]
[1641236490327,0.181,46491.0,46488.0,0.14033567]
[1641236490530,0.14033567,46494.0,46488.0,0.14033567]
[1641236490726,0.14033567,46494.0,46490.0,0.02150304]
[1641236491527,0.001,46491.0,46490.0,0.02150304]
[1641236492326,0.001,46491.0,46488.0,0.14033567]
[1641236492525,0.001,46489.0,46488.0,0.14033567]
[1641236493826,0.001,46489.0,46485.0,0.62831435]
[1641236494026,0.001,46486.0,46485.0,0.62831435]
[1641236494232,0.05979,46486.0,46485.0,0.62831435]
[1641236494427,0.05979,46486.0,46485.0,0.6068044]
[1641236494630,0.20012567,46486.0,46485.0,0.6068044]
[1641236494828,0.38212567,46486.0,46485.0,0.7638044]
[1641236495530,0.38212567,46486.0,46485.0,0.157]
[1641236496028,0.20012567,46486.0,46481.0,0.6068044]
[1641236496228,0.19912567,46486.0,46481.0,0.6068044]
[1641236496827,0.38012567,46486.0,46481.0,0.7888044]
[1641236497230,0.56012567,46486.0,46481.0,0.7888044]
[1641236497832,0.56012567,46486.0,46481.0,0.182]
[1641236498033,0.18,46482.0,46479.0,0.6068044]